Workbook

Sheet MSU
B1: Joni Niskanen | E1: 23.3.1971
B2: SUPERPESIS | E2: Runkosarja | I2: Kärkilyönnit (KL), pesänvälit | P2: Ylempi loppusarja | W2: Alempi loppusarja | AD2: Arvo-ottelut | AH2: Mitalit
B3: Vuosi | C3: Sija | D3: Seura | E3: OTT | F3: KUN | G3: LÖI | H3: TOI | I3: KL | J3: 0 > 1 | K3: 1 > 2 | L3: 2 > 3 | M3: 3 > k | N3: KL-% | P3: OTT | Q3: KUN | R3: LÖI | S3: TOI | T3: KL | U3: KL-% | W3: OTT | X3: KUN | Y3: LÖI | Z3: TOI | AA3: KL | AB3: KL-% | AD3: IL | AE3: LL | AF3: hSM | AG3: K | AH3: H | AI3: P
B4: 1992 | C4: 11. | D4: IPV 2 | F4: suomensarja
B5: 1993 | C5: 2. | D5: IPV | E5: 5 | F5: 0 | G5: 0 | H5: 1 | I5: 1 | J5: 0 | K5: 1 | L5: 0 | M5: 0 | N5: 33.3 %
B6: 1994 | C6: 7. | D6: IPV | E6: 32 | F6: 0 | G6: 7 | H6: 3 | I6: 39 | J6: 15 | K6: 7 | L6: 10 | M6: 7 | N6: 38.2 %
B7: 1995 | C7: 10. | D7: IPV | E7: 25 | F7: 3 | G7: 17 | H7: 12 | I7: 55 | J7: 21 | K7: 9 | L7: 5 | M7: 20 | N7: 40.4 % | W7: 2 | X7: 0 | Y7: 3 | Z7: 0 | AA7: 4 | AB7: 40.0 %
B8: 1996
B9: 1997
B10: 1998
B11: 1999
B12: 2000
B13: 2001
B14: 2002
B15: 2003 | C15: 2. | D15: Manse PP | F15: suomensarja
B16: 2004 | C16: 2. | D16: Manse PP | F16: suomensarja
B17: 2005 | C17: 3. | D17: Manse PP* | F17: suomensarja
B18: Yhteensä | E18: 62 | F18: 3 | G18: 24 | H18: 16 | I18: 95 | J18: 36 | K18: 17 | L18: 15 | M18: 27 | N18: 39.4 % | P18: =SUM(P10:P17) -> 0 | Q18: =SUM(Q10:Q17) -> 0 | R18: =SUM(R10:R17) -> 0 | S18: =SUM(S10:S17) -> 0 | T18: =SUM(T10:T17) -> 0 | U18: 0.0 % | W18: =PRODUCT(E24) -> 2 | X18: =PRODUCT(F24) -> 0 | Y18: =PRODUCT(G24) -> 3 | Z18: =PRODUCT(H24) -> 0 | AA18: =PRODUCT(I24) -> 4 | AB18: =PRODUCT(N24) -> 40.0 % | AD18: 0 | AE18: 0 | AF18: 0 | AG18: 0 | AH18: 0 | AI18: 0
B19: Pesispörssi | D19: 86.3
B21: URA SUPERISSA | E21: OTT | F21: KUN | G21: LÖI | H21: TOI | I21: KL | K21: ka/L | L21: ka/T | M21: ka/KL | N21: KL-% | P21: ENSIMMÄISET RUNKOSARJASSA
B22: Runkosarja | E22: 62 | F22: 3 | G22: 24 | H22: 16 | I22: 95 | K22: 0.44 | L22: 0.26 | M22: 1.53 | N22: 39.4 % | P22: Ottelu | R22: 23.05. 1993 IPV - KaMa 22-1 | AA22: 1. ottelu | AD22: 22 v 2 kk 0 pv
B23: Ylempi loppusarja | P23: Lyöty | R23: 26.05. 1994 KiPa - IPV 0-2 (2-8, 0-5) | AA23: 11. ottelu | AD23: 23 v 2 kk 3 pv
B24: Alempi loppusarja | E24: 2 | F24: 0 | G24: 3 | H24: 0 | I24: 4 | K24: 1.50 | L24: 0.00 | M24: 2.00 | N24: 40.0 % | P24: Tuotu | R24: 05.08. 1993 IPV - SiiPe 17-7 | AA24: 5. ottelu | AD24: 22 v 4 kk 13 pv
B25: KAIKKI | E25: 64 | F25: 3 | G25: 27 | H25: 16 | I25: 99 | K25: 0.47 | L25: 0.25 | M25: 1.55 | N25: 39.4 % | P25: Kunnari | R25: 10.06. 1995 IPV - PattU 2-1 (5-6, 15-1, 1-0) | AA25: 47. ottelu | AD25: 24 v 2 kk 18 pv
B27: Seurat | D27: IPV = Imatran Pallo-Veikot (1955)
D28: Manse PP = Mansen Pesäpallo (1978)
D29: Manse PP* = Manse PP, Tampere (2005)

Sheet MSS
B1: Joni Niskanen | E1: 23.3.1971
B2: YKKÖSPESIS | E2: Runkosarja | L2: Runkosarja TOP-10 | Q2: Jatkosarjat | X2: SUOMENSARJA | AA2: Runkosarja | AH2: Runkosarja TOP-10 | AM2: Jatkosarjat
B3: Vuosi | C3: Sija | D3: Seura | E3: OTT | F3: KUN | G3: LÖI | H3: TOI | I3: KL | J3: KL-% | L3: LÖI | M3: TOI | N3: L+T | O3: KL | Q3: OTT | R3: KUN | S3: LÖI | T3: TOI | U3: KL | V3: KL-% | X3: Vuosi | Y3: Sija | Z3: Seura | AA3: OTT | AB3: KUN | AC3: LÖI | AD3: TOI | AE3: KL | AF3: KL-% | AH3: LÖI | AI3: TOI | AJ3: L+T | AK3: KL | AM3: OTT | AN3: KUN | AO3: LÖI | AP3: TOI | AQ3: KL | AR3: KL-%
X4: 1992 | Y4: 11. | Z4: IPV 2 | AA4: 22 | AB4: 5 | AC4: 23 | AD4: 30
X6: 2004 | Y6: 2. | Z6: Manse PP | AA6: 3 | AB6: 0 | AC6: 0 | AD6: 1 | AE6: 0 | AF6: 0.0 % | AG6: 1
X7: 2005 | Y7: 3. | Z7: Manse PP* | AA7: 7 | AB7: 0 | AC7: 3 | AD7: 5 | AE7: 20 | AF7: 46.5 % | AG7: 43
X8: 2006 | Y8: 1. | Z8: Manse PP* | AA8: 10 | AB8: 1 | AC8: 25 | AD8: 9 | AE8: 62 | AF8: 69.7 % | AG8: 89 | AM8: 7 | AN8: 1 | AO8: 9 | AP8: 5 | AQ8: 34 | AR8: 54.0 % | AS8: 63
B9: YHTEENSÄ | E9: =SUM(E4:E8) -> 0 | F9: =SUM(F4:F8) -> 0 | G9: =SUM(G4:G8) -> 0 | H9: =SUM(H4:H8) -> 0 | I9: =SUM(I4:I8) -> 0 | J9: 0.0 % | K9: =SUM(K4:K8) -> 0 | Q9: =SUM(Q4:Q8) -> 0 | R9: =SUM(R4:R8) -> 0 | S9: =SUM(S4:S8) -> 0 | T9: =SUM(T4:T8) -> 0 | U9: =SUM(U4:U8) -> 0 | V9: 0.0 % | W9: =SUM(W4:W8) -> 0 | X9: YHTEENSÄ | AA9: =SUM(AA4:AA8) -> 42 | AB9: =SUM(AB4:AB8) -> 6 | AC9: =SUM(AC4:AC8) -> 51 | AD9: =SUM(AD4:AD8) -> 45 | AE9: =SUM(AE4:AE8) -> 82 | AF9: =PRODUCT(AE9/AG9) -> 61.7 % | AG9: =SUM(AG4:AG8) -> 133 | AM9: =SUM(AM4:AM8) -> 7 | AN9: =SUM(AN4:AN8) -> 1 | AO9: =SUM(AO4:AO8) -> 9 | AP9: =SUM(AP4:AP8) -> 5 | AQ9: =SUM(AQ4:AQ8) -> 34 | AR9: =PRODUCT(AQ9/AS9) -> 54.0 % | AS9: =SUM(AS4:AS8) -> 63
B11: KAIKKI OTTELUT | E11: OTT | F11: KUN | G11: LÖI | H11: TOI | I11: KL | J11: KL-% | L11: ka/L | M11: ka/T | N11: ka/l+t | O11: ka/kl | R11: Seurat | T11: IPV = Imatran Pallo-Veikot (1955)
B12: SUPERPESIS | E12: 64 | F12: 3 | G12: 27 | H12: 16 | I12: 99 | J12: 39.4 % | K12: =PRODUCT(I12/J12) -> 251.2690355 | L12: =PRODUCT((F12+G12)/E12) -> 0.47 | M12: =PRODUCT(H12/E12) -> 0.25 | N12: =PRODUCT((F12+G12+H12)/E12) -> 0.72 | O12: =PRODUCT(I12/E12) -> 1.55 | T12: Manse PP = Mansen Pesäpallo (1978)
B13: YKKÖSPESIS | E13: =PRODUCT(E9+Q9) -> 0 | F13: =PRODUCT(F9+R9) -> 0 | G13: =PRODUCT(G9+S9) -> 0 | H13: =PRODUCT(H9+T9) -> 0 | I13: =PRODUCT(I9+U9) -> 0 | J13: 0.0 % | K13: =PRODUCT(K9+W9) -> 0 | L13: 0.00 | M13: 0.00 | N13: 0.00 | O13: 0.00 | T13: Manse PP* = Manse PP, Tampere (2005)
B14: SUOMENSARJA | E14: =PRODUCT(AA9+AM9) -> 49 | F14: =PRODUCT(AB9+AN9) -> 7 | G14: =PRODUCT(AC9+AO9) -> 60 | H14: =PRODUCT(AD9+AP9) -> 50 | I14: =PRODUCT(AE9+AQ9) -> 116 | J14: =PRODUCT(I14/K14) -> 59.2 % | K14: =PRODUCT(AG9+AS9) -> 196 | L14: =PRODUCT((F14+G14)/E14) -> 1.37 | M14: =PRODUCT(H14/E14) -> 1.02 | N14: =PRODUCT((F14+G14+H14)/E14) -> 2.39 | O14: 4.30
B15: YHTEENSÄ | E15: =SUM(E12:E14) -> 113 | F15: =SUM(F12:F14) -> 10 | G15: 87 | H15: 66 | I15: 215 | J15: =PRODUCT(I15/K15) -> 48.1 % | K15: =SUM(K12:K14) -> 447.2690355 | L15: =PRODUCT((F15+G15)/E15) -> 0.86 | M15: =PRODUCT(H15/E15) -> 0.58 | N15: =PRODUCT((F15+G15+H15)/E15) -> 1.44 | O15: 2.36

Sheet Arvo-ottelut
B1: ITÄ - LÄNSI - KORTTI
B2: Joni Niskanen | C2: 23.3.1971
B3: C-POJAT | C3: Itä - Länsi, tulos | D3: Joukkue | E3: Seura | G3: V | H3: T | I3: H | J3: Up. | K3: Lj. | L3: Palk. | M3: O | N3: K | O3: L | P3: T | Q3: KL | R3: 1 | S3: 2 | T3: 3 | U3: k | V3: KL-% | W3: Pelinjohtaja | X3: Yleisöä
B4: 19.07. 1986 Virrat | C4: 20-9 | D4: Itä | E4: IPV | G4: 1 | L4: II p | M4: 1 | N4: 1 | O4: 4 | P4: 2 | W4: Veli Haukijärvi | X4: 235
B6: B-POJAT | C6: Itä - Länsi, tulos | D6: Joukkue | E6: Seura | G6: V | H6: T | I6: H | J6: Up. | K6: Lj. | L6: Palk. | M6: O | N6: K | O6: L | P6: T | Q6: KL | R6: 1 | S6: 2 | T6: 3 | U6: k | V6: KL-% | W6: Pelinjohtaja | X6: Yleisöä
B7: 06.08. 1988 Teuva | C7: 4-12 | D7: Itä | E7: IPV | I7: 1 | M7: 1 | N7: 0 | O7: 1 | P7: 0 | W7: Juha Tanskanen | X7: 300
